[Event "*** Biggest EVER Titled Tuesday"]
[Site "Chess.com"]
[Date "2018.04.17"]
[Round "9"]
[White "MartinMatthiesen"]
[Black "ahmadzada13"]
[Result "1-0"]
[WhiteElo "2420"]
[BlackElo "2552"]
[TimeControl "180+2"]
[EndTime "15:05:33 PDT"]
[Termination "MartinMatthiesen won on time"]

1. d4 {[%clk 0:03:01.9]} 1... Nf6 {[%clk 0:03:00.2]} 2. c4 {[%clk 0:03:01.7]}
2... g6 {[%clk 0:03:01.3]} 3. Nc3 {[%clk 0:03:01.8]} 3... Bg7 {[%clk 0:03:02.5]}
4. e4 {[%clk 0:03:02.7]} 4... d6 {[%clk 0:03:03.6]} 5. Be2 {[%clk 0:03:03.7]}
5... O-O {[%clk 0:03:04.5]} 6. Be3 {[%clk 0:03:04.7]} 6... Nbd7 {[%clk
0:03:02.7]} 7. Nf3 {[%clk 0:03:04.6]} 7... e5 {[%clk 0:03:03.6]} 8. d5 {[%clk
0:03:04]} 8... Nc5 {[%clk 0:03:01.1]} 9. Nd2 {[%clk 0:03:04]} 9... a5 {[%clk
0:03:00.6]} 10. O-O {[%clk 0:03:02]} 10... Ne8 {[%clk 0:02:59.1]} 11. a3 {[%clk
0:02:53]} 11... f5 {[%clk 0:02:56.4]} 12. b4 {[%clk 0:02:51.2]} 12... Nd7 {[%clk
0:02:51.1]} 13. f3 {[%clk 0:02:47.5]} 13... f4 {[%clk 0:02:52.2]} 14. Bf2 {[%clk
0:02:48]} 14... g5 {[%clk 0:02:53.8]} 15. c5 {[%clk 0:02:48.5]} 15... h5 {[%clk
0:02:52.7]} 16. Nc4 {[%clk 0:02:48.2]} 16... Ndf6 {[%clk 0:02:53.2]} 17. bxa5
{[%clk 0:02:38.5]} 17... g4 {[%clk 0:02:51.6]} 18. cxd6 {[%clk 0:02:38.4]} 18...
cxd6 {[%clk 0:02:48.1]} 19. Bh4 {[%clk 0:02:35.9]} 19... gxf3 {[%clk 0:02:34.6]}
20. Bxf3 {[%clk 0:02:35.4]} 20... Qc7 {[%clk 0:02:33]} 21. Qd3 {[%clk
0:02:27.7]} 21... Ng4 {[%clk 0:02:31.5]} 22. h3 {[%clk 0:02:19.4]} 22... Bf6
{[%clk 0:02:25.3]} 23. Be1 {[%clk 0:02:03.3]} 23... Nh6 {[%clk 0:02:02.5]} 24.
Rb1 {[%clk 0:01:36.9]} 24... Bd7 {[%clk 0:01:56.9]} 25. Nb5 {[%clk 0:01:19.1]}
25... Bxb5 {[%clk 0:01:42.3]} 26. Rxb5 {[%clk 0:01:21]} 26... Qg7 {[%clk
0:01:26]} 27. Bxh5 {[%clk 0:01:04.8]} 1-0

[Event "*** Biggest EVER Titled Tuesday"]
[Site "Chess.com"]
[Date "2018.04.17"]
[Round "9"]
[White "FairChess_on_YouTube"]
[Black "JustKid"]
[Result "1-0"]
[WhiteElo "2885"]
[BlackElo "2468"]
[TimeControl "180+2"]
[EndTime "15:05:36 PDT"]
[Termination "FairChess_on_YouTube won by resignation"]

1. d4 {[%clk 0:03:01.9]} 1... d5 {[%clk 0:02:58.7]} 2. c4 {[%clk 0:03:02.9]}
2... c6 {[%clk 0:03:00]} 3. Nc3 {[%clk 0:03:03.2]} 3... Nf6 {[%clk 0:03:01.2]}
4. Nf3 {[%clk 0:03:03.3]} 4... a6 {[%clk 0:03:02.3]} 5. g3 {[%clk 0:03:02.2]}
5... dxc4 {[%clk 0:02:54.7]} 6. a4 {[%clk 0:03:03]} 6... e6 {[%clk 0:02:45.5]}
7. Bg2 {[%clk 0:03:02.6]} 7... c5 {[%clk 0:02:46.4]} 8. O-O {[%clk 0:02:51.9]}
8... Nc6 {[%clk 0:02:37.4]} 9. e3 {[%clk 0:02:43.5]} 9... cxd4 {[%clk
0:02:32.8]} 10. exd4 {[%clk 0:02:45.4]} 10... Bb4 {[%clk 0:02:29.3]} 11. Bg5
{[%clk 0:02:41]} 11... h6 {[%clk 0:02:20.7]} 12. Bxf6 {[%clk 0:02:41.7]} 12...
Qxf6 {[%clk 0:02:22.6]} 13. Rc1 {[%clk 0:02:42.5]} 13... Na5 {[%clk 0:02:16.3]}
14. Ne4 {[%clk 0:02:38.7]} 14... Qe7 {[%clk 0:02:17.2]} 15. Ne5 {[%clk
0:02:37.9]} 15... O-O {[%clk 0:02:12.6]} 16. Qh5 {[%clk 0:02:38]} 16... Rb8
{[%clk 0:02:02.2]} 17. g4 {[%clk 0:02:38.1]} 17... Qe8 {[%clk 0:01:09.2]} 18.
Nxc4 {[%clk 0:01:15.2]} 18... Nxc4 {[%clk 0:01:09.3]} 19. Rxc4 {[%clk
0:01:16.6]} 19... a5 {[%clk 0:01:03.7]} 20. Rd1 {[%clk 0:01:03.7]} 20... b6
{[%clk 0:01:04.6]} 21. Nf6+ {[%clk 0:00:59.5]} 21... gxf6 {[%clk 0:01:01.3]} 22.
Qxh6 {[%clk 0:01:00.6]} 22... e5 {[%clk 0:00:21.8]} 23. Be4 {[%clk 0:00:45.2]}
23... f5 {[%clk 0:00:17.4]} 24. Qg5+ {[%clk 0:00:45.5]} 24... Kh8 {[%clk
0:00:11.4]} 25. Rd3 {[%clk 0:00:44.7]} 25... fxg4 {[%clk 0:00:09.4]} 26. Qh6+
{[%clk 0:00:45.4]} 1-0

[Event "*** Biggest EVER Titled Tuesday"]
[Site "Chess.com"]
[Date "2018.04.17"]
[Round "9"]
[White "PchelkinVK"]
[Black "colemman"]
[Result "1-0"]
[WhiteElo "2438"]
[BlackElo "2500"]
[TimeControl "180+2"]
[EndTime "15:05:38 PDT"]
[Termination "PchelkinVK won by resignation"]

1. d4 {[%clk 0:02:53.3]} 1... d5 {[%clk 0:03:00.5]} 2. Nc3 {[%clk 0:02:53.1]}
2... Nf6 {[%clk 0:03:00.5]} 3. Bf4 {[%clk 0:02:53.4]} 3... Bf5 {[%clk
0:02:59.9]} 4. Nf3 {[%clk 0:02:54.5]} 4... c6 {[%clk 0:03:00.3]} 5. e3 {[%clk
0:02:55.6]} 5... e6 {[%clk 0:02:57.7]} 6. Ne5 {[%clk 0:02:56.7]} 6... Nbd7
{[%clk 0:02:57.9]} 7. g4 {[%clk 0:02:57.7]} 7... Bg6 {[%clk 0:02:39.6]} 8. h4
{[%clk 0:02:57.5]} 8... h6 {[%clk 0:02:08.3]} 9. Nxg6 {[%clk 0:02:53.1]} 9...
fxg6 {[%clk 0:02:10.1]} 10. Bd3 {[%clk 0:02:54.3]} 10... Kf7 {[%clk 0:02:10.8]}
11. Qf3 {[%clk 0:02:55.3]} 11... Bb4 {[%clk 0:02:07.1]} 12. O-O-O {[%clk
0:02:46.8]} 12... Bxc3 {[%clk 0:01:08.1]} 13. bxc3 {[%clk 0:02:42.7]} 13... Qe8
{[%clk 0:01:06.2]} 14. g5 {[%clk 0:02:31.6]} 14... hxg5 {[%clk 0:00:40.3]} 15.
hxg5 {[%clk 0:02:29.7]} 15... Nh5 {[%clk 0:00:40.6]} 16. Rh4 {[%clk 0:01:31.3]}
16... Kg8 {[%clk 0:00:37.5]} 17. Rdh1 {[%clk 0:01:31.4]} 17... Qf7 {[%clk
0:00:34.7]} 18. Rxh5 {[%clk 0:01:14.4]} 18... Rxh5 {[%clk 0:00:31.9]} 19. Rxh5
{[%clk 0:01:14.5]} 19... gxh5 {[%clk 0:00:29.5]} 20. g6 {[%clk 0:01:16.4]} 20...
Qe7 {[%clk 0:00:24.8]} 21. Qxh5 {[%clk 0:01:16.6]} 21... Nf6 {[%clk 0:00:25.5]}
22. Qh4 {[%clk 0:01:15.8]} 22... Kf8 {[%clk 0:00:19.4]} 23. Bg5 {[%clk
0:00:55.7]} 23... Rd8 {[%clk 0:00:19.6]} 24. Qh8+ {[%clk 0:00:54.7]} 24... Ng8
{[%clk 0:00:20]} 25. Bxe7+ {[%clk 0:00:55.6]} 25... Kxe7 {[%clk 0:00:21.8]} 26.
Qxg7+ {[%clk 0:00:57]} 26... Kd6 {[%clk 0:00:23.7]} 27. Qxb7 {[%clk 0:00:52.2]}
27... Rd7 {[%clk 0:00:22.5]} 28. Qb8+ {[%clk 0:00:51.7]} 1-0

[Event "*** Biggest EVER Titled Tuesday"]
[Site "Chess.com"]
[Date "2018.04.17"]
[Round "9"]
[White "vovachesss"]
[Black "jk13"]
[Result "0-1"]
[WhiteElo "2370"]
[BlackElo "2536"]
[TimeControl "180+2"]
[EndTime "15:05:42 PDT"]
[Termination "jk13 won by checkmate"]

1. d4 {[%clk 0:02:57.4]} 1... e6 {[%clk 0:03:00.8]} 2. Nf3 {[%clk 0:02:47]} 2...
Nf6 {[%clk 0:03:01.9]} 3. g3 {[%clk 0:02:47.9]} 3... d5 {[%clk 0:03:02.9]} 4.
Bg2 {[%clk 0:02:49.4]} 4... b5 {[%clk 0:03:04.5]} 5. O-O {[%clk 0:02:50.1]} 5...
Nbd7 {[%clk 0:03:06.1]} 6. a4 {[%clk 0:02:50.5]} 6... b4 {[%clk 0:03:07.1]} 7.
c4 {[%clk 0:02:50.4]} 7... bxc3 {[%clk 0:03:07.9]} 8. bxc3 {[%clk 0:02:52.3]}
8... Ba6 {[%clk 0:03:07.9]} 9. Nbd2 {[%clk 0:02:52.2]} 9... Be7 {[%clk
0:03:07.5]} 10. c4 {[%clk 0:02:52.3]} 10... O-O {[%clk 0:03:05.6]} 11. Ne5
{[%clk 0:02:51.9]} 11... Nxe5 {[%clk 0:02:55.5]} 12. dxe5 {[%clk 0:02:52.9]}
12... Ng4 {[%clk 0:02:56]} 13. cxd5 {[%clk 0:02:45.9]} 13... exd5 {[%clk
0:02:57.9]} 14. Bb2 {[%clk 0:02:46.6]} 14... Rb8 {[%clk 0:02:41.5]} 15. Rb1
{[%clk 0:02:47]} 15... c5 {[%clk 0:02:17.8]} 16. Nf3 {[%clk 0:02:37.6]} 16... d4
{[%clk 0:02:08.1]} 17. h3 {[%clk 0:02:37.4]} 17... Nh6 {[%clk 0:02:09.3]} 18.
Nd2 {[%clk 0:02:29]} 18... c4 {[%clk 0:02:00.8]} 19. Ne4 {[%clk 0:02:26.7]}
19... c3 {[%clk 0:01:58.4]} 20. Ba1 {[%clk 0:02:27.7]} 20... Rxb1 {[%clk
0:01:53.6]} 21. Qxb1 {[%clk 0:02:29.5]} 21... Bxe2 {[%clk 0:01:53.7]} 22. Re1
{[%clk 0:02:30.4]} 22... Ba6 {[%clk 0:01:45.7]} 23. g4 {[%clk 0:02:10]} 23...
Qa5 {[%clk 0:01:38]} 24. g5 {[%clk 0:01:45.4]} 24... c2 {[%clk 0:01:18.4]} 25.
Qc1 {[%clk 0:01:40.5]} 25... Nf5 {[%clk 0:01:18.9]} 26. Bf1 {[%clk 0:01:14.7]}
26... Ba3 {[%clk 0:01:10.9]} 27. Nf6+ {[%clk 0:00:31.1]} 27... gxf6 {[%clk
0:01:06.2]} 28. Qf4 {[%clk 0:00:28.9]} 28... Qxe1 {[%clk 0:01:06.5]} 29. Qxf5
{[%clk 0:00:28.1]} 29... Qxf1+ {[%clk 0:01:05.5]} 30. Kh2 {[%clk 0:00:29]} 30...
c1=Q {[%clk 0:01:01.5]} 31. gxf6 {[%clk 0:00:17.8]} 31... Qg1# {[%clk
0:01:01.7]} 0-1

[Event "*** Biggest EVER Titled Tuesday"]
[Site "Chess.com"]
[Date "2018.04.17"]
[Round "9"]
[White "Cecile-Haussernot"]
[Black "nurmiTV"]
[Result "1-0"]
[WhiteElo "2347"]
[BlackElo "2447"]
[TimeControl "180+2"]
[EndTime "15:05:52 PDT"]
[Termination "Cecile-Haussernot won by resignation"]

1. e4 {[%clk 0:03:01.9]} 1... c5 {[%clk 0:02:58.6]} 2. Nf3 {[%clk 0:03:02]} 2...
e6 {[%clk 0:02:59.6]} 3. d4 {[%clk 0:03:02.8]} 3... cxd4 {[%clk 0:03:01.5]} 4.
Nxd4 {[%clk 0:03:04.2]} 4... a6 {[%clk 0:03:03.1]} 5. Bd3 {[%clk 0:03:04.6]}
5... Bc5 {[%clk 0:03:03.3]} 6. Nb3 {[%clk 0:03:05.1]} 6... Be7 {[%clk
0:03:04.2]} 7. Qg4 {[%clk 0:03:05.6]} 7... g6 {[%clk 0:03:04.3]} 8. Qe2 {[%clk
0:03:06.1]} 8... Nc6 {[%clk 0:03:04.4]} 9. O-O {[%clk 0:03:05.5]} 9... Qc7
{[%clk 0:03:04.5]} 10. Na3 {[%clk 0:03:04.2]} 10... Nf6 {[%clk 0:03:00.8]} 11.
Bh6 {[%clk 0:03:04.2]} 11... d6 {[%clk 0:02:52.4]} 12. Nc4 {[%clk 0:03:03.7]}
12... b5 {[%clk 0:02:50.5]} 13. Ne3 {[%clk 0:03:02.5]} 13... Bb7 {[%clk
0:02:47.3]} 14. a4 {[%clk 0:03:02.6]} 14... b4 {[%clk 0:02:44.6]} 15. a5 {[%clk
0:02:57]} 15... Ne5 {[%clk 0:02:40.3]} 16. f4 {[%clk 0:02:55]} 16... Ned7 {[%clk
0:02:30.5]} 17. Rac1 {[%clk 0:02:44.1]} 17... Nxe4 {[%clk 0:02:13]} 18. Bxe4
{[%clk 0:02:36.2]} 18... Bxe4 {[%clk 0:02:14.9]} 19. c3 {[%clk 0:02:37.5]} 19...
bxc3 {[%clk 0:02:04.9]} 20. Rxc3 {[%clk 0:02:39.4]} 20... Qb7 {[%clk 0:02:05.1]}
21. Nc4 {[%clk 0:02:27.5]} 21... Bd5 {[%clk 0:01:38.6]} 22. Rd1 {[%clk
0:02:09.2]} 22... Rd8 {[%clk 0:00:55.8]} 23. Re3 {[%clk 0:01:29.3]} 23... Qa7
{[%clk 0:00:35.9]} 24. Rxd5 {[%clk 0:01:09.8]} 24... Rb8 {[%clk 0:00:31.2]} 25.
Nd4 {[%clk 0:00:51.4]} 25... Qc7 {[%clk 0:00:15.7]} 26. Nxe6 {[%clk 0:00:47.2]}
26... fxe6 {[%clk 0:00:15.8]} 27. Rxe6 {[%clk 0:00:49.1]} 27... Nc5 {[%clk
0:00:11.6]} 28. Nxd6+ {[%clk 0:00:45.9]} 28... Kd8 {[%clk 0:00:08.3]} 29. Nb5+
{[%clk 0:00:46.7]} 29... Kc8 {[%clk 0:00:08.7]} 1-0

[Event "*** Biggest EVER Titled Tuesday"]
[Site "Chess.com"]
[Date "2018.04.17"]
[Round "9"]
[White "grzechu96"]
[Black "Jbd735"]
[Result "1-0"]
[WhiteElo "2472"]
[BlackElo "2318"]
[TimeControl "180+2"]
[EndTime "15:05:59 PDT"]
[Termination "grzechu96 won on time"]

1. e4 {[%clk 0:03:01.9]} 1... e5 {[%clk 0:03:00.1]} 2. Nf3 {[%clk 0:03:02.8]}
2... Nc6 {[%clk 0:03:00.1]} 3. d4 {[%clk 0:03:04.1]} 3... exd4 {[%clk
0:03:00.3]} 4. Nxd4 {[%clk 0:03:06]} 4... Bc5 {[%clk 0:03:00.4]} 5. Nb3 {[%clk
0:03:07.1]} 5... Bb6 {[%clk 0:02:59.5]} 6. Nc3 {[%clk 0:03:07.8]} 6... Nf6
{[%clk 0:02:56.5]} 7. Bg5 {[%clk 0:03:08.7]} 7... h6 {[%clk 0:02:50.5]} 8. Bh4
{[%clk 0:03:09.2]} 8... d6 {[%clk 0:02:14.8]} 9. f3 {[%clk 0:03:08.2]} 9... g5
{[%clk 0:02:06.6]} 10. Bg3 {[%clk 0:02:47.4]} 10... Be6 {[%clk 0:02:05]} 11. Bb5
{[%clk 0:02:46.6]} 11... Qe7 {[%clk 0:01:32.2]} 12. Qe2 {[%clk 0:02:40.2]} 12...
Bd7 {[%clk 0:01:17.6]} 13. O-O-O {[%clk 0:02:34.4]} 13... O-O-O {[%clk
0:01:17.5]} 14. Rhe1 {[%clk 0:02:30.6]} 14... Rhe8 {[%clk 0:01:14.3]} 15. a4
{[%clk 0:02:18.7]} 15... a6 {[%clk 0:01:01.2]} 16. Bxa6 {[%clk 0:02:19.6]} 16...
bxa6 {[%clk 0:01:01.4]} 17. Qxa6+ {[%clk 0:02:20.5]} 17... Kb8 {[%clk
0:01:02.7]} 18. Bxd6 {[%clk 0:02:08.8]} 18... cxd6 {[%clk 0:00:47]} 19. Qxb6+
{[%clk 0:02:08.9]} 19... Ka8 {[%clk 0:00:33.8]} 20. Nb5 {[%clk 0:02:09.6]} 20...
Rc8 {[%clk 0:00:31.7]} 21. Nc7+ {[%clk 0:02:06.7]} 21... Rxc7 {[%clk 0:00:31.5]}
22. Qxc7 {[%clk 0:02:08.6]} 22... Rc8 {[%clk 0:00:21.6]} 23. Qxd6 {[%clk
0:02:08.5]} 23... Qxd6 {[%clk 0:00:22.7]} 24. Rxd6 {[%clk 0:02:09.7]} 24... Be6
{[%clk 0:00:23.3]} 25. Nd4 {[%clk 0:01:28.5]} 25... Ne5 {[%clk 0:00:18.7]} 26.
Nxe6 {[%clk 0:01:27.8]} 26... fxe6 {[%clk 0:00:19.3]} 27. Red1 {[%clk
0:01:24.7]} 27... Nc4 {[%clk 0:00:04]} 28. Rxe6 {[%clk 0:01:22.1]} 28... Nh5
{[%clk 0:00:03.4]} 29. g3 {[%clk 0:01:20.8]} 29... Ne3 {[%clk 0:00:04]} 30. Rd2
{[%clk 0:01:22]} 30... Rc4 {[%clk 0:00:02.2]} 31. b3 {[%clk 0:01:21.6]} 31...
Rc7 {[%clk 0:00:02.7]} 32. Rxh6 {[%clk 0:01:20.7]} 32... Ng7 {[%clk 0:00:03.5]}
33. Rh7 {[%clk 0:01:21.3]} 33... Ne6 {[%clk 0:00:03.4]} 34. Rxc7 {[%clk
0:01:21]} 34... Nxc7 {[%clk 0:00:05.3]} 35. Re2 {[%clk 0:01:18.3]} 35... Nf1
{[%clk 0:00:05.3]} 36. Rf2 {[%clk 0:01:19.2]} 36... Ne3 {[%clk 0:00:04.7]} 37.
Kd2 {[%clk 0:01:20.4]} 1-0

[Event "*** Biggest EVER Titled Tuesday"]
[Site "Chess.com"]
[Date "2018.04.17"]
[Round "9"]
[White "WinnerOleg"]
[Black "GoingKronos"]
[Result "0-1"]
[WhiteElo "2298"]
[BlackElo "2394"]
[TimeControl "180+2"]
[EndTime "15:06:02 PDT"]
[Termination "GoingKronos won on time"]

1. b3 {[%clk 0:03:00.5]} 1... d5 {[%clk 0:03:00.5]} 2. Bb2 {[%clk 0:03:02.4]}
2... Bg4 {[%clk 0:03:01.5]} 3. h3 {[%clk 0:03:03.1]} 3... Bh5 {[%clk 0:03:02.7]}
4. Nf3 {[%clk 0:03:04.7]} 4... Nd7 {[%clk 0:03:00.7]} 5. d4 {[%clk 0:03:04.9]}
5... e6 {[%clk 0:02:58.5]} 6. e3 {[%clk 0:02:52.4]} 6... Ngf6 {[%clk 0:02:56.8]}
7. Be2 {[%clk 0:02:53.6]} 7... Bd6 {[%clk 0:02:47.4]} 8. O-O {[%clk 0:02:54.7]}
8... O-O {[%clk 0:02:47.6]} 9. c4 {[%clk 0:02:56.2]} 9... c6 {[%clk 0:02:47.4]}
10. Nbd2 {[%clk 0:02:52.1]} 10... Qe7 {[%clk 0:02:45.6]} 11. Ne5 {[%clk
0:02:49.1]} 11... Bxe2 {[%clk 0:02:45.3]} 12. Qxe2 {[%clk 0:02:48.7]} 12... Ba3
{[%clk 0:02:45.2]} 13. Ndf3 {[%clk 0:02:30.4]} 13... a5 {[%clk 0:02:41.6]} 14.
c5 {[%clk 0:02:26]} 14... Bxb2 {[%clk 0:02:41.3]} 15. Qxb2 {[%clk 0:02:27.7]}
15... Ne4 {[%clk 0:02:35.3]} 16. a4 {[%clk 0:02:14.9]} 16... f6 {[%clk
0:02:31.8]} 17. Nxd7 {[%clk 0:02:07.7]} 17... Qxd7 {[%clk 0:02:32.5]} 18. b4
{[%clk 0:02:09.4]} 18... axb4 {[%clk 0:02:29.3]} 19. Qxb4 {[%clk 0:02:10.1]}
19... Ra7 {[%clk 0:02:28.4]} 20. Rfb1 {[%clk 0:02:03.4]} 20... Rfa8 {[%clk
0:02:29]} 21. Ne1 {[%clk 0:01:30]} 21... h5 {[%clk 0:02:19.6]} 22. Nd3 {[%clk
0:01:17.5]} 22... g5 {[%clk 0:02:11.8]} 23. Ra2 {[%clk 0:00:58.7]} 23... Kg7
{[%clk 0:02:04.3]} 24. a5 {[%clk 0:00:57.2]} 24... h4 {[%clk 0:02:00.7]} 25. Qb6
{[%clk 0:00:47.7]} 25... Kg6 {[%clk 0:01:58]} 26. Rb3 {[%clk 0:00:45.3]} 26...
Kf7 {[%clk 0:01:47]} 27. Nb4 {[%clk 0:00:44.4]} 27... Kg6 {[%clk 0:01:40.3]} 28.
a6 {[%clk 0:00:45]} 28... bxa6 {[%clk 0:01:37.2]} 29. Nxc6 {[%clk 0:00:34.6]}
29... Rc7 {[%clk 0:01:34.8]} 30. Nb8 {[%clk 0:00:24]} 30... Qc8 {[%clk
0:01:25.3]} 31. Rxa6 {[%clk 0:00:19.7]} 31... Rxa6 {[%clk 0:01:21.7]} 32. Nxa6
{[%clk 0:00:12.4]} 32... Rc6 {[%clk 0:01:20.9]} 33. Qb7 {[%clk 0:00:07.5]} 33...
Qxb7 {[%clk 0:01:18.9]} 34. Rxb7 {[%clk 0:00:09.4]} 34... Rxa6 {[%clk 0:01:20]}
35. f3 {[%clk 0:00:11]} 35... Ra1+ {[%clk 0:01:19.9]} 36. Kh2 {[%clk 0:00:12.4]}
36... Ng3 {[%clk 0:01:21]} 0-1

[Event "*** Biggest EVER Titled Tuesday"]
[Site "Chess.com"]
[Date "2018.04.17"]
[Round "9"]
[White "ABDELAZEEZ-M"]
[Black "ehrenfeld"]
[Result "0-1"]
[WhiteElo "2304"]
[BlackElo "2488"]
[TimeControl "180+2"]
[EndTime "15:06:07 PDT"]
[Termination "ehrenfeld won by checkmate"]

1. d4 {[%clk 0:02:59.8]} 1... Nf6 {[%clk 0:03:00.1]} 2. Nf3 {[%clk 0:03:00.4]}
2... e6 {[%clk 0:03:00.3]} 3. g3 {[%clk 0:03:01.2]} 3... b5 {[%clk 0:03:00.5]}
4. Bg2 {[%clk 0:03:01.8]} 4... Bb7 {[%clk 0:03:01.5]} 5. O-O {[%clk 0:03:02.5]}
5... c5 {[%clk 0:03:02.3]} 6. a4 {[%clk 0:03:02.9]} 6... b4 {[%clk 0:03:01.1]}
7. c4 {[%clk 0:03:02.2]} 7... cxd4 {[%clk 0:02:58]} 8. Nxd4 {[%clk 0:03:00.8]}
8... Bxg2 {[%clk 0:02:56.9]} 9. Kxg2 {[%clk 0:03:02.7]} 9... Qc7 {[%clk
0:02:49.8]} 10. b3 {[%clk 0:03:00.7]} 10... Na6 {[%clk 0:02:48.5]} 11. Nb5
{[%clk 0:02:59.7]} 11... Qb7+ {[%clk 0:02:39]} 12. f3 {[%clk 0:02:59.9]} 12...
Nc5 {[%clk 0:02:34.4]} 13. Bb2 {[%clk 0:02:59.6]} 13... Be7 {[%clk 0:02:31]} 14.
Bxf6 {[%clk 0:02:59.4]} 14... gxf6 {[%clk 0:02:31.2]} 15. Nd2 {[%clk 0:02:59.5]}
15... a6 {[%clk 0:02:23.2]} 16. Nd4 {[%clk 0:02:59.6]} 16... f5 {[%clk
0:02:20.8]} 17. Qc2 {[%clk 0:02:59.1]} 17... Bf6 {[%clk 0:02:20.5]} 18. e3
{[%clk 0:02:46]} 18... h5 {[%clk 0:02:20.8]} 19. h4 {[%clk 0:02:19.7]} 19... Rg8
{[%clk 0:02:19.1]} 20. Kh3 {[%clk 0:02:19.9]} 20... Qc7 {[%clk 0:02:13.1]} 21.
f4 {[%clk 0:02:17.6]} 21... Ke7 {[%clk 0:02:06.5]} 22. Rad1 {[%clk 0:02:16.9]}
22... Rg4 {[%clk 0:02:05.9]} 23. N2f3 {[%clk 0:02:16.4]} 23... Rag8 {[%clk
0:02:05.4]} 24. Rg1 {[%clk 0:02:15.4]} 24... Ne4 {[%clk 0:01:59.4]} 25. Ng5
{[%clk 0:02:15.6]} 25... Bxg5 {[%clk 0:01:55.3]} 26. hxg5 {[%clk 0:02:01.4]}
26... Rh8 {[%clk 0:01:53.3]} 27. Nf3 {[%clk 0:02:00.9]} 27... Qc5 {[%clk
0:01:28.6]} 28. Rd4 {[%clk 0:01:56.5]} 28... d6 {[%clk 0:01:25.9]} 29. Rg2
{[%clk 0:01:54.5]} 29... Qc8 {[%clk 0:01:23.9]} 30. Rxe4 {[%clk 0:01:50.9]}
30... fxe4 {[%clk 0:01:23.9]} 31. Qxe4 {[%clk 0:01:52.1]} 31... Kf8 {[%clk
0:01:05.2]} 32. Qd4 {[%clk 0:01:50.6]} 32... Ke7 {[%clk 0:01:02.7]} 33. Qf6+
{[%clk 0:01:50.1]} 33... Kd7 {[%clk 0:01:02.8]} 34. Rd2 {[%clk 0:01:50.2]} 34...
Kc6 {[%clk 0:00:48.7]} 35. Nd4+ {[%clk 0:01:45.3]} 35... Kb6 {[%clk 0:00:46.2]}
36. Qxf7 {[%clk 0:01:37]} 36... e5 {[%clk 0:00:44.2]} 37. Ne6 {[%clk 0:01:37.1]}
37... Qc6 {[%clk 0:00:39.4]} 38. Qe7 {[%clk 0:01:32.7]} 38... Qh1+ {[%clk
0:00:35.4]} 39. Rh2 {[%clk 0:01:30.8]} 39... Rh4+ {[%clk 0:00:32.2]} 40. gxh4
{[%clk 0:01:16]} 40... Qf3# {[%clk 0:00:31.5]} 0-1

[Event "*** Biggest EVER Titled Tuesday"]
[Site "Chess.com"]
[Date "2018.04.17"]
[Round "9"]
[White "Shant_Sargsyan"]
[Black "mukhin1"]
[Result "0-1"]
[WhiteElo "2809"]
[BlackElo "2909"]
[TimeControl "180+2"]
[EndTime "15:06:13 PDT"]
[Termination "mukhin1 won by checkmate"]

1. d4 {[%clk 0:03:00.5]} 1... e6 {[%clk 0:03:01.9]} 2. Nf3 {[%clk 0:02:58.5]}
2... c5 {[%clk 0:03:00]} 3. c4 {[%clk 0:02:57.2]} 3... cxd4 {[%clk 0:02:57.9]}
4. Nxd4 {[%clk 0:02:59.1]} 4... Nf6 {[%clk 0:02:57.7]} 5. g3 {[%clk 0:02:59.9]}
5... d5 {[%clk 0:02:54.9]} 6. Bg2 {[%clk 0:03:00.6]} 6... e5 {[%clk 0:02:56.4]}
7. Nf3 {[%clk 0:03:01.6]} 7... d4 {[%clk 0:02:54.4]} 8. O-O {[%clk 0:03:02.7]}
8... Nc6 {[%clk 0:02:52]} 9. e3 {[%clk 0:03:03.7]} 9... Be7 {[%clk 0:02:49.8]}
10. exd4 {[%clk 0:03:04.8]} 10... exd4 {[%clk 0:02:51.7]} 11. Bf4 {[%clk
0:03:05]} 11... O-O {[%clk 0:02:47.6]} 12. Ne5 {[%clk 0:03:05.9]} 12... Nxe5
{[%clk 0:02:45.4]} 13. Bxe5 {[%clk 0:03:06.8]} 13... Bc5 {[%clk 0:02:47.3]} 14.
Qd3 {[%clk 0:02:53.6]} 14... Ng4 {[%clk 0:02:43.9]} 15. Bf4 {[%clk 0:02:53.5]}
15... g5 {[%clk 0:02:44.2]} 16. h3 {[%clk 0:02:22.7]} 16... gxf4 {[%clk
0:02:41.5]} 17. hxg4 {[%clk 0:02:23.8]} 17... Bxg4 {[%clk 0:02:40.9]} 18. Nd2
{[%clk 0:02:25.4]} 18... Re8 {[%clk 0:02:31.2]} 19. Rae1 {[%clk 0:02:25.5]}
19... Qb6 {[%clk 0:02:29.6]} 20. Ne4 {[%clk 0:02:23]} 20... Bb4 {[%clk
0:02:28.6]} 21. Rc1 {[%clk 0:01:50]} 21... f5 {[%clk 0:02:11.2]} 22. Ng5 {[%clk
0:01:45.7]} 22... fxg3 {[%clk 0:02:11.9]} 23. Qxg3 {[%clk 0:01:42]} 23... Bd2
{[%clk 0:02:08.4]} 24. Bd5+ {[%clk 0:01:05.2]} 24... Kg7 {[%clk 0:01:52.8]} 25.
Nf3 {[%clk 0:00:32.4]} 25... Bxc1 {[%clk 0:01:50.9]} 26. Rxc1 {[%clk 0:00:34.3]}
26... d3 {[%clk 0:01:44.1]} 27. Nh4 {[%clk 0:00:28.8]} 27... d2 {[%clk
0:01:32.2]} 28. Nxf5+ {[%clk 0:00:17]} 28... Kf6 {[%clk 0:01:08.9]} 29. Qc3+
{[%clk 0:00:12.5]} 29... Kxf5 {[%clk 0:01:06.9]} 30. Qxd2 {[%clk 0:00:13.6]}
30... Qg6 {[%clk 0:01:00.1]} 31. Qd3+ {[%clk 0:00:09.2]} 31... Kf6 {[%clk
0:01:00.6]} 32. Qd4+ {[%clk 0:00:10.4]} 32... Re5 {[%clk 0:00:58]} 33. f4 {[%clk
0:00:11.6]} 33... Bf3+ {[%clk 0:00:57.7]} 34. Kf2 {[%clk 0:00:04.9]} 34... Qg2#
{[%clk 0:00:57.8]} 0-1